[Event "*** Titled Tuesday Blitz"]
[Site "Chess.com"]
[Date "2020.05.26"]
[Round "8"]
[White "BLITZMASTER"]
[Black "KNVB"]
[Result "0-1"]
[WhiteElo "2493"]
[BlackElo "2762"]
[TimeControl "180+1"]
[EndTime "11:41:52 PDT"]
[Termination "KNVB won by resignation"]

1. e4 {[%clk 0:03:00.9]} 1... c5 {[%clk 0:02:52.1]} 2. Nf3 {[%clk 0:02:59.8]}
2... e6 {[%clk 0:02:48.4]} 3. d4 {[%clk 0:02:59.9]} 3... cxd4 {[%clk 0:02:47.5]}
4. Nxd4 {[%clk 0:03:00.8]} 4... Nc6 {[%clk 0:02:47.8]} 5. Nc3 {[%clk 0:03:00.7]}
5... Qc7 {[%clk 0:02:42.3]} 6. Be2 {[%clk 0:03:00.5]} 6... a6 {[%clk 0:02:42.2]}
7. O-O {[%clk 0:03:00.3]} 7... b5 {[%clk 0:02:40.9]} 8. Nxc6 {[%clk 0:02:56.8]}
8... Qxc6 {[%clk 0:02:41.8]} 9. e5 {[%clk 0:02:54.4]} 9... Bb7 {[%clk
0:02:40.6]} 10. Bf3 {[%clk 0:02:54.9]} 10... Qc7 {[%clk 0:02:41]} 11. Bxb7
{[%clk 0:02:55.4]} 11... Qxb7 {[%clk 0:02:41.9]} 12. Re1 {[%clk 0:02:51]} 12...
Ne7 {[%clk 0:02:37.1]} 13. Ne4 {[%clk 0:02:30.3]} 13... Nd5 {[%clk 0:02:17.5]}
14. Qg4 {[%clk 0:02:27.4]} 14... Rc8 {[%clk 0:02:14.4]} 15. c3 {[%clk
0:02:23.4]} 15... Qc7 {[%clk 0:01:23.3]} 16. Qg3 {[%clk 0:02:18.1]} 16... f5
{[%clk 0:00:40.5]} 17. Nd6+ {[%clk 0:02:03.8]} 17... Bxd6 {[%clk 0:00:40.6]} 18.
exd6 {[%clk 0:02:04.5]} 18... Qd8 {[%clk 0:00:41.2]} 19. Qxg7 {[%clk 0:01:55.6]}
19... Qf6 {[%clk 0:00:41.4]} 20. Bh6 {[%clk 0:01:42.6]} 20... Qxg7 {[%clk
0:00:22.7]} 21. Bxg7 {[%clk 0:01:43.5]} 21... Rg8 {[%clk 0:00:23.6]} 22. Be5
{[%clk 0:01:43.3]} 22... Rg4 {[%clk 0:00:24.5]} 23. Rad1 {[%clk 0:01:23.9]}
23... Kf7 {[%clk 0:00:24]} 24. Rd3 {[%clk 0:01:20.7]} 24... h5 {[%clk
0:00:13.4]} 25. h3 {[%clk 0:01:14.3]} 25... Rgc4 {[%clk 0:00:03.6]} 26. Kh2
{[%clk 0:01:05.5]} 26... Rg8 {[%clk 0:00:02.7]} 27. g3 {[%clk 0:00:51.3]} 27...
Rc6 {[%clk 0:00:02.4]} 28. Rd4 {[%clk 0:00:47.2]} 28... Rc4 {[%clk 0:00:02.4]}
29. Red1 {[%clk 0:00:44.9]} 29... Rgc8 {[%clk 0:00:02.6]} 30. R4d3 {[%clk
0:00:44.5]} 30... a5 {[%clk 0:00:02.5]} 31. Bd4 {[%clk 0:00:33.7]} 31... b4
{[%clk 0:00:02.8]} 32. b3 {[%clk 0:00:25.3]} 32... Rxc3 {[%clk 0:00:03.3]} 33.
Bxc3 {[%clk 0:00:24.9]} 33... bxc3 {[%clk 0:00:02.7]} 34. Rc1 {[%clk 0:00:17.8]}
34... Rc6 {[%clk 0:00:02.7]} 35. Kg1 {[%clk 0:00:16.2]} 35... Ra6 {[%clk
0:00:02.4]} 36. Kf1 {[%clk 0:00:15.3]} 36... a4 {[%clk 0:00:02.8]} 37. Rcxc3
{[%clk 0:00:03.5]} 37... Nxc3 {[%clk 0:00:03]} 38. Rxc3 {[%clk 0:00:04.4]} 38...
axb3 {[%clk 0:00:03.7]} 39. axb3 {[%clk 0:00:04.8]} 39... Rxd6 {[%clk
0:00:04.2]} 40. Rc4 {[%clk 0:00:02.9]} 40... Rd2 {[%clk 0:00:03.7]} 41. b4
{[%clk 0:00:03]} 41... Rb2 {[%clk 0:00:04]} 42. Rh4 {[%clk 0:00:03.5]} 42... Kg6
{[%clk 0:00:03.8]} 43. Rd4 {[%clk 0:00:03.1]} 43... d5 {[%clk 0:00:04.4]} 44. h4
{[%clk 0:00:02]} 44... Kf6 {[%clk 0:00:03.6]} 45. Rf4 {[%clk 0:00:01.3]} 45...
Ke5 {[%clk 0:00:03.9]} 46. Rf3 {[%clk 0:00:01.5]} 46... Rxb4 {[%clk 0:00:03.7]}
47. Re3+ {[%clk 0:00:02.4]} 47... Re4 {[%clk 0:00:03.4]} 48. Ra3 {[%clk
0:00:03.3]} 48... f4 {[%clk 0:00:04]} 49. Ra8 {[%clk 0:00:03.9]} 49... fxg3
{[%clk 0:00:04.4]} 50. fxg3 {[%clk 0:00:04.6]} 50... Rg4 {[%clk 0:00:04.6]} 51.
Kf2 {[%clk 0:00:05.1]} 51... Rg6 {[%clk 0:00:04.8]} 52. Ra5 {[%clk 0:00:05.1]}
52... Rf6+ {[%clk 0:00:05.7]} 53. Ke2 {[%clk 0:00:04.7]} 53... Ke4 {[%clk
0:00:05.7]} 54. Ra3 {[%clk 0:00:05.2]} 54... d4 {[%clk 0:00:05.7]} 55. Ra5
{[%clk 0:00:04.4]} 55... e5 {[%clk 0:00:06.3]} 56. Ra3 {[%clk 0:00:04]} 56...
Rg6 {[%clk 0:00:06.7]} 57. Kf2 {[%clk 0:00:04.3]} 57... Rb6 {[%clk 0:00:07.3]}
58. Ke2 {[%clk 0:00:05.2]} 58... Rb2+ {[%clk 0:00:07.6]} 59. Kf1 {[%clk
0:00:05.1]} 59... d3 {[%clk 0:00:07.8]} 60. Ke1 {[%clk 0:00:05.1]} 60... Ke3
{[%clk 0:00:07.8]} 61. Kf1 {[%clk 0:00:04.9]} 61... e4 {[%clk 0:00:07.4]} 62.
Ra1 {[%clk 0:00:04.4]} 62... Rh2 {[%clk 0:00:07.1]} 63. Kg1 {[%clk 0:00:03.9]}
63... Re2 {[%clk 0:00:07.4]} 64. Rf1 {[%clk 0:00:04]} 64... d2 {[%clk
0:00:07.6]} 0-1

[Event "*** Titled Tuesday Blitz"]
[Site "Chess.com"]
[Date "2020.05.26"]
[Round "8"]
[White "Arjun2002"]
[Black "Vaathi_Coming"]
[Result "0-1"]
[WhiteElo "2664"]
[BlackElo "2854"]
[TimeControl "180+1"]
[EndTime "11:41:55 PDT"]
[Termination "Vaathi_Coming won on time"]

1. e4 {[%clk 0:03:00.9]} 1... c6 {[%clk 0:03:00.9]} 2. Nf3 {[%clk 0:02:59.5]}
2... d5 {[%clk 0:03:01.5]} 3. Nc3 {[%clk 0:02:59.4]} 3... dxe4 {[%clk
0:02:59.7]} 4. Nxe4 {[%clk 0:02:59.4]} 4... Nf6 {[%clk 0:03:00.6]} 5. Qe2 {[%clk
0:02:59.7]} 5... Nxe4 {[%clk 0:02:55.2]} 6. Qxe4 {[%clk 0:03:00.6]} 6... Qd5
{[%clk 0:02:55]} 7. Qf4 {[%clk 0:02:48.9]} 7... Qf5 {[%clk 0:02:51.2]} 8. Qxf5
{[%clk 0:02:36.6]} 8... Bxf5 {[%clk 0:02:52.1]} 9. d3 {[%clk 0:02:34.8]} 9...
Nd7 {[%clk 0:02:51.2]} 10. g3 {[%clk 0:02:35]} 10... e5 {[%clk 0:02:50.1]} 11.
Bg2 {[%clk 0:02:34.4]} 11... O-O-O {[%clk 0:02:49.5]} 12. Bd2 {[%clk 0:02:32.7]}
12... Bc5 {[%clk 0:02:46.3]} 13. Bc3 {[%clk 0:02:22.7]} 13... Rhe8 {[%clk
0:02:45.5]} 14. Ng5 {[%clk 0:02:18.2]} 14... Re7 {[%clk 0:02:40]} 15. Ne4 {[%clk
0:02:16.8]} 15... Bxe4 {[%clk 0:02:21.1]} 16. Bxe4 {[%clk 0:02:15.8]} 16... Bd4
{[%clk 0:02:17.6]} 17. Bxd4 {[%clk 0:02:07.9]} 17... exd4 {[%clk 0:02:18.5]} 18.
Kd2 {[%clk 0:02:08]} 18... g6 {[%clk 0:02:12]} 19. Rae1 {[%clk 0:02:01.2]} 19...
Kc7 {[%clk 0:02:11.2]} 20. h4 {[%clk 0:01:59.9]} 20... h5 {[%clk 0:02:05.3]} 21.
Bg2 {[%clk 0:01:49.4]} 21... Rde8 {[%clk 0:02:04.5]} 22. Rxe7 {[%clk 0:01:45.3]}
22... Rxe7 {[%clk 0:02:05.4]} 23. Re1 {[%clk 0:01:45.5]} 23... Rxe1 {[%clk
0:02:04.5]} 24. Kxe1 {[%clk 0:01:46.4]} 24... Kd6 {[%clk 0:02:04.1]} 25. Kd2
{[%clk 0:01:42.6]} 25... Nc5 {[%clk 0:02:02.1]} 26. c3 {[%clk 0:01:36.1]} 26...
dxc3+ {[%clk 0:01:42.4]} 27. bxc3 {[%clk 0:01:35.7]} 27... b5 {[%clk 0:01:42.5]}
28. Bh3 {[%clk 0:01:26.2]} 28... a5 {[%clk 0:01:37]} 29. a3 {[%clk 0:01:14.8]}
29... f5 {[%clk 0:01:29.4]} 30. Bg2 {[%clk 0:01:12]} 30... Nd7 {[%clk
0:01:29.3]} 31. Bf3 {[%clk 0:01:01.6]} 31... Ne5 {[%clk 0:01:27.7]} 32. Be2
{[%clk 0:01:01.2]} 32... Kd5 {[%clk 0:01:19.3]} 33. Ke3 {[%clk 0:00:57.4]} 33...
c5 {[%clk 0:01:19.4]} 34. Bd1 {[%clk 0:00:45.2]} 34... Ng4+ {[%clk 0:00:58.1]}
35. Ke2 {[%clk 0:00:36.6]} 35... c4 {[%clk 0:00:55.2]} 36. Bc2 {[%clk
0:00:35.6]} 36... Ne5 {[%clk 0:00:50.4]} 37. d4 {[%clk 0:00:19.3]} 37... Nc6
{[%clk 0:00:49.4]} 38. Ke3 {[%clk 0:00:19.5]} 38... b4 {[%clk 0:00:48.3]} 39.
axb4 {[%clk 0:00:19.7]} 39... axb4 {[%clk 0:00:47.6]} 40. cxb4 {[%clk 0:00:20]}
40... Nxb4 {[%clk 0:00:43.4]} 41. Ba4 {[%clk 0:00:18.2]} 41... c3 {[%clk
0:00:16.8]} 42. Bb3+ {[%clk 0:00:15.1]} 42... Kd6 {[%clk 0:00:17.1]} 43. Kf4
{[%clk 0:00:15.5]} 43... c2 {[%clk 0:00:09.1]} 44. Bxc2 {[%clk 0:00:15.8]} 44...
Nxc2 {[%clk 0:00:09.8]} 45. Kg5 {[%clk 0:00:16.6]} 45... Nxd4 {[%clk 0:00:09.1]}
46. Kxg6 {[%clk 0:00:17]} 46... Ke6 {[%clk 0:00:08.4]} 47. Kxh5 {[%clk 0:00:17]}
47... Kf6 {[%clk 0:00:06.6]} 48. g4 {[%clk 0:00:14.4]} 48... f4 {[%clk
0:00:06.5]} 49. g5+ {[%clk 0:00:14.7]} 49... Kf5 {[%clk 0:00:05.1]} 50. Kh6
{[%clk 0:00:13.7]} 50... Kg4 {[%clk 0:00:03.2]} 51. h5 {[%clk 0:00:09.8]} 51...
Nf5+ {[%clk 0:00:03]} 52. Kg6 {[%clk 0:00:09.6]} 52... Nh4+ {[%clk 0:00:03.3]}
53. Kh6 {[%clk 0:00:08.8]} 53... f3 {[%clk 0:00:02.9]} 0-1

[Event "*** Titled Tuesday Blitz"]
[Site "Chess.com"]
[Date "2020.05.26"]
[Round "8"]
[White "Fortitudine"]
[Black "jonaszmb"]
[Result "1-0"]
[WhiteElo "2329"]
[BlackElo "2456"]
[TimeControl "180+1"]
[EndTime "11:41:55 PDT"]
[Termination "Fortitudine won by resignation"]

1. d4 {[%clk 0:03:00.9]} 1... d5 {[%clk 0:02:59.7]} 2. Nc3 {[%clk 0:03:00.7]}
2... Nf6 {[%clk 0:02:59]} 3. Bg5 {[%clk 0:03:00.6]} 3... Nbd7 {[%clk 0:02:59.2]}
4. Nf3 {[%clk 0:02:58.8]} 4... c6 {[%clk 0:02:59.2]} 5. e3 {[%clk 0:02:58.2]}
5... Qa5 {[%clk 0:02:53]} 6. Qd2 {[%clk 0:02:24.5]} 6... e6 {[%clk 0:02:51.4]}
7. Bd3 {[%clk 0:02:16.4]} 7... Bb4 {[%clk 0:02:51]} 8. Bxf6 {[%clk 0:02:12]}
8... Nxf6 {[%clk 0:02:50.7]} 9. a3 {[%clk 0:02:05.2]} 9... Bxc3 {[%clk
0:02:50.4]} 10. bxc3 {[%clk 0:02:04]} 10... Ne4 {[%clk 0:02:29.1]} 11. Bxe4
{[%clk 0:02:00.7]} 11... dxe4 {[%clk 0:02:30]} 12. Ne5 {[%clk 0:01:56.8]} 12...
f6 {[%clk 0:02:30.3]} 13. Nc4 {[%clk 0:01:51.4]} 13... Qd5 {[%clk 0:02:17.5]}
14. Qe2 {[%clk 0:01:44.1]} 14... O-O {[%clk 0:01:47.6]} 15. Nd2 {[%clk
0:01:40.6]} 15... f5 {[%clk 0:01:30]} 16. Qc4 {[%clk 0:01:26.3]} 16... Qd6
{[%clk 0:01:25.1]} 17. Qb4 {[%clk 0:01:19.9]} 17... Qc7 {[%clk 0:01:22.5]} 18.
Nc4 {[%clk 0:01:16.6]} 18... b6 {[%clk 0:01:20.6]} 19. O-O {[%clk 0:01:06]}
19... Ba6 {[%clk 0:01:20.4]} 20. Rfd1 {[%clk 0:01:00.2]} 20... Rfd8 {[%clk
0:01:09.3]} 21. a4 {[%clk 0:00:53.5]} 21... c5 {[%clk 0:01:06.3]} 22. dxc5
{[%clk 0:00:47.7]} 22... bxc5 {[%clk 0:01:03.9]} 23. Qa5 {[%clk 0:00:41.3]}
23... Qxa5 {[%clk 0:00:58.7]} 24. Nxa5 {[%clk 0:00:42.2]} 24... Be2 {[%clk
0:00:54.9]} 25. Re1 {[%clk 0:00:28.5]} 25... Bh5 {[%clk 0:00:52.4]} 26. Nc4
{[%clk 0:00:22.9]} 26... Rab8 {[%clk 0:00:46.7]} 27. Rab1 {[%clk 0:00:18.4]}
27... Be8 {[%clk 0:00:40]} 28. a5 {[%clk 0:00:14.3]} 28... Ba4 {[%clk 0:00:40]}
29. Rxb8 {[%clk 0:00:11.9]} 29... Rxb8 {[%clk 0:00:40.9]} 30. f3 {[%clk
0:00:09.5]} 30... Bxc2 {[%clk 0:00:40]} 31. Rc1 {[%clk 0:00:08.4]} 31... Bd3
{[%clk 0:00:38.8]} 32. Ne5 {[%clk 0:00:09]} 32... c4 {[%clk 0:00:31.2]} 33. Nc6
{[%clk 0:00:08.9]} 33... Rb5 {[%clk 0:00:25.2]} 34. Ra1 {[%clk 0:00:06.9]} 34...
a6 {[%clk 0:00:24.6]} 35. Nb4 {[%clk 0:00:06.6]} 35... exf3 {[%clk 0:00:09.3]}
36. gxf3 {[%clk 0:00:07.5]} 36... f4 {[%clk 0:00:08.4]} 37. exf4 {[%clk
0:00:06.3]} 37... e5 {[%clk 0:00:03.1]} 38. Nxa6 {[%clk 0:00:04.5]} 38... exf4
{[%clk 0:00:02.6]} 39. Nb4 {[%clk 0:00:04.7]} 39... Rb8 {[%clk 0:00:01.4]} 40.
a6 {[%clk 0:00:04.7]} 40... Ra8 {[%clk 0:00:01.9]} 41. a7 {[%clk 0:00:05.2]}
41... Bf5 {[%clk 0:00:02]} 42. Nd5 {[%clk 0:00:04.7]} 42... Bc8 {[%clk
0:00:01.2]} 43. Nb6 {[%clk 0:00:04.8]} 43... Bb7 {[%clk 0:00:02.1]} 44. Nxa8
{[%clk 0:00:04.8]} 44... Bxa8 {[%clk 0:00:03]} 45. Rb1 {[%clk 0:00:05.6]} 45...
Kf7 {[%clk 0:00:02.9]} 46. Rb8 {[%clk 0:00:05.7]} 46... Bxf3 {[%clk 0:00:03.5]}
47. a8=Q {[%clk 0:00:05.2]} 47... Bxa8 {[%clk 0:00:04.1]} 48. Rxa8 {[%clk
0:00:06.1]} 48... g5 {[%clk 0:00:04.7]} 49. Kf2 {[%clk 0:00:06.5]} 49... Kg6
{[%clk 0:00:04.9]} 50. Rc8 {[%clk 0:00:07.1]} 50... h5 {[%clk 0:00:04.7]} 51.
Rxc4 {[%clk 0:00:08]} 51... Kf5 {[%clk 0:00:05.6]} 52. Rc5+ {[%clk 0:00:08.4]}
52... Kg4 {[%clk 0:00:05.7]} 53. Rd5 {[%clk 0:00:06.9]} 53... h4 {[%clk
0:00:05.1]} 54. h3+ {[%clk 0:00:07]} 54... Kh5 {[%clk 0:00:03.2]} 55. c4 {[%clk
0:00:06.6]} 55... Kh6 {[%clk 0:00:02.8]} 56. Kf3 {[%clk 0:00:07.1]} 1-0

[Event "*** Titled Tuesday Blitz"]
[Site "Chess.com"]
[Date "2020.05.26"]
[Round "8"]
[White "ChelsieMonica"]
[Black "wild_cat99"]
[Result "0-1"]
[WhiteElo "2389"]
[BlackElo "2562"]
[TimeControl "180+1"]
[EndTime "11:41:56 PDT"]
[Termination "wild_cat99 won by checkmate"]

1. c4 {[%clk 0:03:00.9]} 1... Nf6 {[%clk 0:02:59.4]} 2. Nf3 {[%clk 0:03:01.8]}
2... g6 {[%clk 0:02:58.8]} 3. e3 {[%clk 0:03:01.7]} 3... Bg7 {[%clk 0:02:53.7]}
4. Be2 {[%clk 0:03:02.6]} 4... O-O {[%clk 0:02:54.1]} 5. O-O {[%clk 0:03:02.7]}
5... d5 {[%clk 0:02:55]} 6. cxd5 {[%clk 0:03:01.9]} 6... Nxd5 {[%clk 0:02:53.7]}
7. Nc3 {[%clk 0:03:02.8]} 7... c5 {[%clk 0:02:50.3]} 8. d4 {[%clk 0:02:59]} 8...
Nc6 {[%clk 0:02:45.6]} 9. h3 {[%clk 0:02:43.2]} 9... Nxc3 {[%clk 0:02:17.2]} 10.
bxc3 {[%clk 0:02:41.6]} 10... Qc7 {[%clk 0:02:18.1]} 11. Rb1 {[%clk 0:02:34.7]}
11... b6 {[%clk 0:02:17.5]} 12. dxc5 {[%clk 0:02:15.5]} 12... Bf5 {[%clk
0:02:02.7]} 13. Rb3 {[%clk 0:02:02.7]} 13... Rfd8 {[%clk 0:01:59.7]} 14. Qe1
{[%clk 0:01:57.9]} 14... bxc5 {[%clk 0:01:57.6]} 15. c4 {[%clk 0:01:53.4]} 15...
Na5 {[%clk 0:01:57]} 16. Rb5 {[%clk 0:01:52]} 16... Nb7 {[%clk 0:01:56.9]} 17.
Ba3 {[%clk 0:01:44.2]} 17... a6 {[%clk 0:01:54.8]} 18. Rb3 {[%clk 0:01:43.5]}
18... Na5 {[%clk 0:01:54.7]} 19. Rb2 {[%clk 0:01:39.9]} 19... Bxb2 {[%clk
0:01:54.4]} 20. Bxb2 {[%clk 0:01:40.8]} 20... Qb6 {[%clk 0:01:50.6]} 21. Qc3
{[%clk 0:01:34.7]} 21... f6 {[%clk 0:01:51]} 22. g4 {[%clk 0:01:32.1]} 22... Be6
{[%clk 0:01:46.6]} 23. Ng5 {[%clk 0:01:30.9]} 23... Bc8 {[%clk 0:01:46.6]} 24.
Ne4 {[%clk 0:01:25.7]} 24... Bb7 {[%clk 0:01:46.1]} 25. Bf3 {[%clk 0:01:20.5]}
25... Rab8 {[%clk 0:01:39.6]} 26. Ba3 {[%clk 0:01:19]} 26... Bxe4 {[%clk
0:01:33.2]} 27. Bxe4 {[%clk 0:01:19]} 27... Nc6 {[%clk 0:01:34.1]} 28. Bd5+
{[%clk 0:01:18.6]} 28... Kg7 {[%clk 0:01:33.3]} 29. g5 {[%clk 0:01:18.2]} 29...
Ne5 {[%clk 0:01:26.8]} 30. f4 {[%clk 0:01:17.8]} 30... Nc6 {[%clk 0:01:26.2]}
31. Rf2 {[%clk 0:01:13.9]} 31... Qb1+ {[%clk 0:01:21.2]} 32. Kg2 {[%clk
0:01:13.5]} 32... Nb4 {[%clk 0:01:18.2]} 33. gxf6+ {[%clk 0:01:07.2]} 33... exf6
{[%clk 0:01:18.2]} 34. Bf3 {[%clk 0:01:02.7]} 34... Qd3 {[%clk 0:01:12.7]} 35.
Qc1 {[%clk 0:00:56.1]} 35... Re8 {[%clk 0:01:00.5]} 36. e4 {[%clk 0:00:53.4]}
36... Rxe4 {[%clk 0:01:00.7]} 37. Rd2 {[%clk 0:00:47.3]} 37... Qxc4 {[%clk
0:00:55.8]} 38. Rd7+ {[%clk 0:00:47.1]} 38... Kh8 {[%clk 0:00:51.7]} 39. Qb2
{[%clk 0:00:43.6]} 39... Rxf4 {[%clk 0:00:51.7]} 40. Qd2 {[%clk 0:00:41.2]}
40... Qc2 {[%clk 0:00:48.3]} 41. Bxb4 {[%clk 0:00:36.5]} 41... Qxd2+ {[%clk
0:00:48.4]} 42. Bxd2 {[%clk 0:00:37.4]} 42... Rd4 {[%clk 0:00:48.8]} 43. Rxd4
{[%clk 0:00:35.6]} 43... cxd4 {[%clk 0:00:49.7]} 44. Kf2 {[%clk 0:00:33.7]}
44... Rb2 {[%clk 0:00:49.2]} 45. Ke2 {[%clk 0:00:34]} 45... Rxa2 {[%clk
0:00:49]} 46. Kd3 {[%clk 0:00:34.9]} 46... Ra3+ {[%clk 0:00:48.6]} 47. Ke2
{[%clk 0:00:34.7]} 47... a5 {[%clk 0:00:47.8]} 48. h4 {[%clk 0:00:34.2]} 48...
a4 {[%clk 0:00:46.6]} 49. h5 {[%clk 0:00:34.6]} 49... Rb3 {[%clk 0:00:44]} 50.
hxg6 {[%clk 0:00:34.6]} 50... hxg6 {[%clk 0:00:44.6]} 51. Bd5 {[%clk 0:00:34.9]}
51... Rh3 {[%clk 0:00:43.5]} 52. Bb4 {[%clk 0:00:26.5]} 52... a3 {[%clk
0:00:41.3]} 53. Bc5 {[%clk 0:00:26.8]} 53... d3+ {[%clk 0:00:35.5]} 54. Kd2
{[%clk 0:00:25.7]} 54... a2 {[%clk 0:00:33.4]} 55. Bd4 {[%clk 0:00:23.4]} 55...
Kg7 {[%clk 0:00:30.7]} 56. Kc3 {[%clk 0:00:17.6]} 56... a1=Q+ {[%clk 0:00:29.2]}
57. Kc4 {[%clk 0:00:05.5]} 57... Qa4+ {[%clk 0:00:29.2]} 58. Kc5 {[%clk
0:00:05.5]} 58... d2 {[%clk 0:00:28]} 59. Kd6 {[%clk 0:00:05.6]} 59... d1=Q
{[%clk 0:00:27.6]} 60. Ke7 {[%clk 0:00:06]} 60... Qb4+ {[%clk 0:00:25]} 61. Ke8
{[%clk 0:00:05.3]} 61... Qe2+ {[%clk 0:00:24.8]} 62. Be5 {[%clk 0:00:03.2]}
62... Rh8+ {[%clk 0:00:24.9]} 63. Kd7 {[%clk 0:00:03.1]} 63... Qeb5+ {[%clk
0:00:22.6]} 64. Bc6 {[%clk 0:00:02.3]} 64... Q4a4 {[%clk 0:00:19.6]} 65. Bxf6+
{[%clk 0:00:01.8]} 65... Kxf6 {[%clk 0:00:18.4]} 66. Kd6 {[%clk 0:00:02.7]}
66... Qxc6# {[%clk 0:00:18.4]} 0-1

[Event "*** Titled Tuesday Blitz"]
[Site "Chess.com"]
[Date "2020.05.26"]
[Round "8"]
[White "Sam_ChessMood"]
[Black "ftorodent"]
[Result "1-0"]
[WhiteElo "2859"]
[BlackElo "2667"]
[TimeControl "180+1"]
[EndTime "11:41:59 PDT"]
[Termination "Sam_ChessMood won by resignation"]

1. e4 {[%clk 0:03:00.9]} 1... e6 {[%clk 0:02:59.4]} 2. d4 {[%clk 0:02:59.1]}
2... d5 {[%clk 0:02:59]} 3. Nc3 {[%clk 0:02:59.4]} 3... Bb4 {[%clk 0:02:58]} 4.
e5 {[%clk 0:02:59.5]} 4... Qd7 {[%clk 0:02:57.9]} 5. Qg4 {[%clk 0:02:56.4]} 5...
f5 {[%clk 0:02:57.4]} 6. Qg3 {[%clk 0:02:56.7]} 6... b6 {[%clk 0:02:57.3]} 7. a3
{[%clk 0:02:37.6]} 7... Bxc3+ {[%clk 0:02:56.5]} 8. bxc3 {[%clk 0:02:38]} 8...
Ba6 {[%clk 0:02:56.3]} 9. Bxa6 {[%clk 0:02:33.9]} 9... Nxa6 {[%clk 0:02:56.2]}
10. Ne2 {[%clk 0:02:28.7]} 10... O-O-O {[%clk 0:02:45.3]} 11. h4 {[%clk
0:02:27.4]} 11... Nb8 {[%clk 0:02:44.4]} 12. Nf4 {[%clk 0:02:16.4]} 12... Nc6
{[%clk 0:02:44]} 13. Nh5 {[%clk 0:01:57.7]} 13... g6 {[%clk 0:02:35.6]} 14. Nf4
{[%clk 0:01:57.8]} 14... Nge7 {[%clk 0:02:27.3]} 15. Nd3 {[%clk 0:01:33.9]}
15... h6 {[%clk 0:02:19.7]} 16. a4 {[%clk 0:01:19.7]} 16... Na5 {[%clk
0:02:14.7]} 17. O-O {[%clk 0:01:15.3]} 17... Rdg8 {[%clk 0:02:06.5]} 18. Ba3
{[%clk 0:01:09.7]} 18... g5 {[%clk 0:02:05.4]} 19. Bb4 {[%clk 0:01:03.6]} 19...
Nc4 {[%clk 0:02:05.2]} 20. a5 {[%clk 0:01:02.4]} 20... Nc6 {[%clk 0:02:02.4]}
21. axb6 {[%clk 0:01:00.5]} 21... cxb6 {[%clk 0:02:02.3]} 22. Bd6 {[%clk
0:01:00]} 22... f4 {[%clk 0:01:58.4]} 23. Qh2 {[%clk 0:00:44.4]} 23... f3 {[%clk
0:01:51.7]} 24. g3 {[%clk 0:00:38.7]} 24... g4 {[%clk 0:01:48.6]} 25. Rfe1
{[%clk 0:00:30.1]} 25... h5 {[%clk 0:01:47.3]} 26. Kh1 {[%clk 0:00:30.2]} 26...
N6a5 {[%clk 0:01:35.4]} 27. Qg1 {[%clk 0:00:27.5]} 27... Kb7 {[%clk 0:01:29.6]}
28. Reb1 {[%clk 0:00:27.4]} 28... Ka8 {[%clk 0:01:26.9]} 29. Rb4 {[%clk
0:00:25.9]} 29... Nc6 {[%clk 0:01:22]} 30. Rb3 {[%clk 0:00:22.2]} 30... Rb8
{[%clk 0:01:17.5]} 31. Qc1 {[%clk 0:00:21.4]} 31... Nxd6 {[%clk 0:01:12.2]} 32.
exd6 {[%clk 0:00:21.2]} 32... Qxd6 {[%clk 0:01:12.3]} 33. Ra6 {[%clk 0:00:21.2]}
33... e5 {[%clk 0:01:06.2]} 34. dxe5 {[%clk 0:00:20.8]} 34... Nxe5 {[%clk
0:01:06.2]} 35. Qf4 {[%clk 0:00:21]} 35... Nc4 {[%clk 0:01:05.8]} 36. Rba3
{[%clk 0:00:19]} 36... Rh7 {[%clk 0:00:59.5]} 37. Qf5 {[%clk 0:00:15]} 37... Rc7
{[%clk 0:00:27.4]} 38. Ra1 {[%clk 0:00:15.2]} 38... Nd2 {[%clk 0:00:24.3]} 39.
Qxh5 {[%clk 0:00:13.6]} 39... Ne4 {[%clk 0:00:24.1]} 40. Qxg4 {[%clk 0:00:13.2]}
40... Nxc3 {[%clk 0:00:21.5]} 41. Qxf3 {[%clk 0:00:13.1]} 41... Ne4 {[%clk
0:00:21.4]} 42. Qe3 {[%clk 0:00:13.5]} 42... Qc6 {[%clk 0:00:20]} 43. Qd4 {[%clk
0:00:13.3]} 43... Nc3 {[%clk 0:00:17.2]} 44. Nb4 {[%clk 0:00:13.1]} 44... Qb7
{[%clk 0:00:16.5]} 45. Kh2 {[%clk 0:00:12.5]} 45... Nb5 {[%clk 0:00:15.8]} 46.
Qd3 {[%clk 0:00:12]} 46... Rc4 {[%clk 0:00:15.7]} 47. Nxd5 {[%clk 0:00:10.2]}
47... Nd6 {[%clk 0:00:15.1]} 48. Nxb6+ {[%clk 0:00:09.8]} 48... Qxb6 {[%clk
0:00:14.8]} 49. Rxb6 {[%clk 0:00:10.2]} 49... Rxb6 {[%clk 0:00:15]} 50. Qd5+
{[%clk 0:00:10.5]} 50... Kb8 {[%clk 0:00:13.5]} 51. Re1 {[%clk 0:00:09.8]} 51...
Rxc2 {[%clk 0:00:11.6]} 52. Kg1 {[%clk 0:00:08.7]} 52... Rc8 {[%clk 0:00:09.2]}
53. Re6 {[%clk 0:00:08.2]} 53... Nc4 {[%clk 0:00:09]} 54. Rxb6+ {[%clk
0:00:07.6]} 54... axb6 {[%clk 0:00:09.5]} 55. h5 {[%clk 0:00:07.1]} 55... Rc5
{[%clk 0:00:09.8]} 56. Qd4 {[%clk 0:00:06.6]} 56... Ne5 {[%clk 0:00:08]} 57. Qe4
{[%clk 0:00:05.7]} 57... Nf7 {[%clk 0:00:06]} 58. Qe8+ {[%clk 0:00:05.2]} 1-0